fUSD/lending_fUSD_20250512
["ID","MTS","AMOUNT","RATE_DAILY","PERIOD"]
[360822791,1747042238448,-848.31554436,0.00013593,2]
[360822792,1747042238458,-468.53555663,0.00013593,2]
[360822793,1747042238467,-848.31554436,0.00013593,2]
[360822794,1747042238477,-468.53555663,0.00013593,2]
[360822795,1747042238699,-848.31554436,0.00013594,2]
[360822796,1747042238709,-402.51336857,0.00013594,2]
[360822797,1747042238727,-66.02218806,0.00013594,2]
[360822798,1747042238736,-848.31554436,0.00013595,2]
[360822799,1747042238745,-468.53555663,0.00013595,2]
[360822800,1747042238754,-571.31338985,0.00013596,2]
[360822801,1747042238768,-277.00215451,0.00013596,2]
[360822802,1747042238778,-468.53555663,0.00013596,2]
[360822803,1747042238787,-848.31554436,0.00013596,2]
[360822804,1747042238796,-468.53555663,0.00013596,2]
[360822805,1747042238805,-848.31554436,0.00013597,2]
[360822806,1747042238814,-468.53555663,0.00013597,2]
[360822807,1747042238823,-7976.379,0.00013598,2]
[360822808,1747042238832,-33714.6465,0.00013598,2]
[360822809,1747042238842,-848.31554436,0.00013598,2]
[360822810,1747042238851,-263.82819838,0.00013598,2]
[360822811,1747042238860,-177.80034632,0.00013598,2]
[360822812,1747042238869,-468.53555663,0.00013598,2]
[360822813,1747042238878,-182.28305186,0.00013598,2]
[360822814,1747042238887,-971.2634752,0.000136,2]
[360822815,1747042238899,-206.7365248,0.000136,2]
[360822816,1747042238908,-765.5300385,0.00013629,2]
[360822817,1747042238918,-500.0,0.00013673,2]
[360822818,1747042238927,-500.0,0.00013673,2]
[360822819,1747042238936,-500.0,0.00013673,2]
[360822820,1747042238945,-500.0,0.00013673,2]
[360822821,1747042238955,-614.59251773,0.00013684,2]
[360822822,1747042238973,-1763.50000011,0.00013684,2]
[360822823,1747042238984,-539.83604071,0.00013684,2]
[360822824,1747042238995,-80175.5573596,0.00013684,2]
[360822825,1747042240373,-1007.5722947,0.00013684,2]
[360822826,1747042240385,-169300.46652367,0.00013684,2]
[360822827,1747042240396,-209042.3401103,0.00013684,2]
[360822828,1747042240429,-998.814642,0.00013684,2]
[360822829,1747042240939,-0.00864519,0.00013684,2]
[360822831,1747042241184,-11289.26443774,0.00013684,2]
[360822832,1747042241195,-20955.00012026,0.00013684,2]
[360822854,1747042243549,-529.43721919,0.00013684,2]
[360822855,1747042243571,-550.41,0.00013684,2]
[360822856,1747042243634,-31099.49767639,0.00013684,2]
[360822857,1747042243643,-58236.41739124,0.00013684,2]
[360822858,1747042243654,-707.675,0.00013684,2]
[360822859,1747042243682,-1274.0019308,0.00013684,2]
[360822860,1747042243739,-2309.87672045,0.00013684,2]
[360822861,1747042243751,-3896.67322716,0.00013684,2]
[360822863,1747042243853,-30909.70335594,0.00013684,2]
[360823099,1747042246270,-268.987887,0.00013684,2]
[360823106,1747042246326,-418.08,0.00013684,2]
[360823114,1747042246393,-995.01,0.00013684,2]
[360823126,1747042246493,-3434.12887577,0.00013684,2]
[360823129,1747042246504,-5220.0,0.00013684,2]
[360823830,1747042405508,1203.78,0.00010781,2]
[360823831,1747042802301,-200.0,0.00012248,2]
[360823832,1747042807904,-180.71852403,0.00012248,2]
[360823833,1747042822373,-166.98927041,0.00012248,2]
[360823834,1747042909974,-261.05649461,0.000122,2]
[360823835,1747042912248,-275.30198589,0.000122,2]
[360823836,1747042916807,366.4602849,0.000121,2]
[360823837,1747042916828,169.8981956,0.000121,2]
[360823838,1747042927303,-20.99004353,0.000122,2]
[360823839,1747043052547,1111.38111757,0.00011732,2]
[360823840,1747043069190,150.0,0.00013699,7]
[360823841,1747043134399,2008.07,0.00013,5]
[360823842,1747043175725,1985.2,0.00014,5]
[360823843,1747043211110,-245.18525768,0.0001225,2]
[360823849,1747043294732,-164.92304653,0.00012187,2]
[360823850,1747043297175,-79.02032547,0.00012187,2]
[360823851,1747043297195,-300.0,0.00012249,2]
[360823852,1747043297217,-300.0,0.00012249,2]
[360823853,1747043297238,-150.0,0.00012249,2]
[360823854,1747043297265,-254.81474232,0.0001225,2]
[360823855,1747043297292,-500.0,0.0001225,2]
[360823856,1747043297318,-500.0,0.0001225,2]
[360823857,1747043297344,-500.0,0.0001225,2]
[360823858,1747043297373,-500.0,0.0001225,2]
[360823859,1747043297401,-500.0,0.0001225,2]
[360823860,1747043297428,-500.0,0.0001225,2]
[360823861,1747043297457,-500.0,0.0001225,2]
[360823862,1747043297486,-500.0,0.0001225,2]
[360823863,1747043297512,-500.0,0.0001225,2]
[360823864,1747043297538,-500.0,0.0001225,2]
[360823865,1747043297562,-500.0,0.0001225,2]
[360823866,1747043297587,-66.16493221,0.0001225,2]
[360823867,1747043302827,-224.60748945,0.000122,2]
[360823868,1747043317222,-159.08820892,0.000122,2]
[360823871,1747043332312,-184.69577847,0.000122,2]
[360823874,1747043347259,-300.0,0.00012199,2]
[360823875,1747043347282,-142.26347971,0.000122,2]
[360823876,1747043362353,-168.18210163,0.00012199,2]
[360823877,1747043362373,-84.34380536,0.00012199,2]
[360823881,1747043374091,-96.43881566,0.00012199,2]
[360823882,1747043374113,-158.84813733,0.00012199,2]
[360823883,1747043374140,-500.0,0.00012199,2]
[360823884,1747043374170,-500.0,0.00012199,2]
[360823885,1747043374196,-500.0,0.00012199,2]
[360823886,1747043374222,-500.0,0.00012199,2]
[360823887,1747043374248,-500.0,0.00012199,2]
[360823888,1747043374274,-500.0,0.00012199,2]
[360823889,1747043374302,-77.49185301,0.00012199,2]
[360823890,1747043377253,-161.42662591,0.00012199,2]
[360823891,1747043392310,-189.32716082,0.00012199,2]
[360823894,1747043407309,-360.67283918,0.00012198,2]
[360823895,1747043408201,1556.07680934,7.945e-05,2]
[360823896,1747043408223,2837.35612251,7.945e-05,2]
[360823897,1747043408245,1942.69358115,7.945e-05,2]
[360823898,1747043422320,-200.0,0.00012198,2]
[360823900,1747043431700,-639.32716082,0.00012198,2]
[360823901,1747043431710,-300.0,0.00012198,2]
[360823902,1747043431720,-71.75436026,0.00012199,2]
[360823903,1747043431730,-500.0,0.00012199,2]
[360823904,1747043431740,-304.28340622,0.00012199,2]
[360823911,1747043432027,-195.71659378,0.00012199,2]
[360823912,1747043432037,-191.26340622,0.00012199,2]
[360823913,1747043432050,-308.73659378,0.00012199,2]
[360823914,1747043432059,-138.4044243,0.00012199,2]
[360823915,1747043432070,-361.5955757,0.00012199,2]
[360823916,1747043432081,-500.0,0.00012199,2]
[360823917,1747043432091,-500.0,0.00012199,2]
[360823918,1747043432100,-500.0,0.00012199,2]
[360823919,1747043432110,-358.4044003,0.00012199,2]
[360823920,1747043432161,-141.5955997,0.00012199,2]
[360823921,1747043432170,-500.0,0.00012199,2]
[360823922,1747043432179,-500.0,0.00012199,2]
[360823924,1747043432188,-500.0,0.00012199,2]
[360823926,1747043432197,-500.0,0.00012199,2]
[360823928,1747043432207,-500.0,0.00012199,2]
[360823930,1747043432216,-500.0,0.00012199,2]
[360823932,1747043432226,-500.0,0.00012199,2]
[360823934,1747043432235,-500.0,0.00012199,2]
[360823936,1747043432245,-500.0,0.00012199,2]
[360823938,1747043432254,-500.0,0.00012199,2]
[360823940,1747043432264,-500.0,0.00012199,2]
[360823942,1747043432273,-68.3818241,0.00012199,2]
[360823944,1747043432284,-431.6181759,0.00012199,2]
[360823946,1747043432294,-500.0,0.00012199,2]
[360823948,1747043432303,-500.0,0.00012199,2]
[360823950,1747043432312,-500.0,0.00012199,2]
[360823951,1747043432321,-500.0,0.00012199,2]
[360823953,1747043432332,-326.29340575,0.00012199,2]
[360823955,1747043432342,-500.0,0.00012199,2]
[360823957,1747043432351,-500.0,0.00012199,2]
[360823959,1747043432360,-500.0,0.00012199,2]
[360823961,1747043432368,-500.0,0.00012199,2]
[360823963,1747043432377,-500.0,0.00012199,2]
[360823965,1747043432386,-500.0,0.00012199,2]
[360823967,1747043432395,-500.0,0.00012199,2]
[360823969,1747043432408,-500.0,0.00012199,2]
[360823971,1747043432417,-500.0,0.00012199,2]
[360823973,1747043432426,-500.0,0.00012199,2]
[360823975,1747043432435,-500.0,0.00012199,2]
[360823977,1747043432446,-182.62934058,0.00012199,2]
[360823979,1747043432455,-500.0,0.00012199,2]
[360823981,1747043432464,-500.0,0.00012199,2]
[360823983,1747043432474,-500.0,0.00012199,2]
[360823985,1747043432483,-500.0,0.00012199,2]
[360823987,1747043432492,-500.0,0.00012199,2]
[360823988,1747043432502,-500.0,0.00012199,2]
[360823989,1747043432511,-500.0,0.00012199,2]
[360823990,1747043432520,-500.0,0.00012199,2]
[360823991,1747043432529,-500.0,0.00012199,2]
[360823992,1747043432539,-500.0,0.00012199,2]
[360823993,1747043432548,-500.0,0.00012199,2]
[360823994,1747043432557,-500.0,0.00012199,2]
[360823995,1747043432567,-500.0,0.00012199,2]
[360823996,1747043432578,-500.0,0.00012199,2]
[360823997,1747043432587,-500.0,0.00012199,2]
[360823998,1747043432596,-500.0,0.00012199,2]
[360823999,1747043432605,-500.0,0.00012199,2]
[360824000,1747043432614,-500.0,0.00012199,2]
[360824001,1747043432623,-500.0,0.00012199,2]
[360824002,1747043432632,-500.0,0.00012199,2]
[360824003,1747043432641,-500.0,0.00012199,2]
[360824004,1747043432650,-500.0,0.00012199,2]
[360824005,1747043432659,-500.0,0.00012199,2]
[360824006,1747043432668,-500.0,0.00012199,2]
[360824007,1747043432677,-500.0,0.00012199,2]
[360824008,1747043432686,-500.0,0.00012199,2]
[360824009,1747043432695,-500.0,0.00012199,2]
[360824010,1747043432705,-500.0,0.00012199,2]
[360824011,1747043432714,-500.0,0.00012199,2]
[360824012,1747043432723,-500.0,0.00012199,2]
[360824013,1747043432732,-500.0,0.00012199,2]
[360824014,1747043432741,-500.0,0.00012199,2]
[360824015,1747043432750,-500.0,0.00012199,2]
[360824016,1747043432759,-500.0,0.00012199,2]
[360824017,1747043432769,-500.0,0.00012199,2]
[360824018,1747043432777,-500.0,0.00012199,2]
[360824019,1747043432787,-500.0,0.00012199,2]
[360824020,1747043432797,-215.65793647,0.00012199,2]
[360824021,1747043432806,-500.0,0.00012199,2]
[360824022,1747043432815,-500.0,0.00012199,2]
[360824023,1747043432824,-250.0,0.000122,2]
[360824024,1747043432834,-29399.43583029,0.000122,2]
[360824025,1747043432843,-250.0,0.00012225,2]
[360824026,1747043432852,-250.0,0.00012225,2]
[360824027,1747043432861,-9699.51063739,0.00012249,2]
[360824028,1747043432871,-1000.0,0.00012282,2]
[360824029,1747043432880,-200.81,0.00012285,2]
[360824030,1747043432889,-371.3,0.00012293,2]
[360824031,1747043432897,-1075.0,0.00012349,2]
[360824032,1747043432906,-1449.22,0.00012372,2]
[360824033,1747043432915,-311.2,0.00012392,2]
[360824034,1747043432924,-247.65,0.00012439,2]
[360824035,1747043432934,-165.76,0.00012672,2]
[360824036,1747043432943,-158.56,0.00012707,2]
[360824037,1747043432952,-158.56,0.00012714,2]
[360824038,1747043432961,-158.56,0.00012721,2]
[360824039,1747043432970,-158.56,0.00012728,2]
[360824040,1747043432979,-158.56,0.00012735,2]
[360824041,1747043432988,-158.56,0.00012742,2]
[360824042,1747043432996,-158.56,0.00012749,2]
[360824043,1747043433006,-158.56,0.00012756,2]
[360824044,1747043433015,-158.56,0.00012763,2]
[360824045,1747043433024,-158.56,0.0001277,2]
[360824046,1747043433033,-1075.0,0.00012999,2]
[360824047,1747043433043,-1275.44538329,0.00013,3]
[360824048,1747043433055,-522.8446343,0.00013,3]
[360824050,1747043437606,-1781.70998241,0.00013,3]
[360824051,1747043437616,-668.65185757,0.00013012,2]
[360824052,1747043437626,-207.4,0.00013012,2]
[360824053,1747043437636,-1203.78,0.00013045,2]
[360824054,1747043437646,-152.79,0.00013221,2]
[360824055,1747043437655,-452.44,0.00013221,2]
[360824056,1747043437664,-452.44,0.00013221,2]
[360824057,1747043437674,-450.18,0.00013221,2]
[360824058,1747043437683,-162.53,0.00013221,2]
[360824059,1747043437693,-720.87549843,0.00013334,2]
[360824060,1747043437702,-255.0,0.00013339,2]
[360824061,1747043437712,-420.0,0.00013388,2]
[360824062,1747043437722,-1680.0,0.00013418,2]
[360824063,1747043437731,-250.0,0.00013419,2]
[360824064,1747043437740,-192.26756629,0.00013529,2]
[360824065,1747043437750,-693.3919763,0.0001356,2]
[360824066,1747043437759,-644.74876905,0.00013584,2]
[360824067,1747043437768,-2500.0,0.00013584,2]
[360824068,1747043437778,-500.0,0.00013586,2]
[360824069,1747043437787,-500.0,0.00013586,2]
[360824070,1747043437796,-500.0,0.00013586,2]
[360824071,1747043437806,-500.0,0.00013586,2]
[360824072,1747043437815,-500.0,0.00013586,2]
[360824073,1747043437825,-500.0,0.00013586,2]
[360824074,1747043437835,-500.0,0.00013586,2]
[360824075,1747043437844,-529.34413246,0.00013586,2]
[360824076,1747043437854,-187.41871806,0.00013588,2]
[360824077,1747043437863,-1117.71650739,0.0001359,2]
[360824078,1747043437873,-1117.71650734,0.00013591,2]
[360824079,1747043437883,-2238.3067,0.00013591,2]
[360824080,1747043437892,-804.19487526,0.00013592,2]
[360824082,1747043437981,-313.52163208,0.00013592,2]
[360824083,1747043437990,-1117.71650734,0.00013593,2]
[360824084,1747043437999,-1117.71650734,0.00013594,2]
[360824085,1747043438008,-1117.71650734,0.00013594,2]
[360824087,1747043438018,-1117.71650734,0.00013595,2]
[360824088,1747043438028,-1117.71650734,0.00013596,2]
[360824090,1747043438040,-1117.71650734,0.00013597,2]
[360824091,1747043438050,-1117.71650734,0.00013598,2]
[360824092,1747043438061,-187.41871806,0.00013598,2]
[360824093,1747043438071,-187.16717574,0.00013598,2]
[360824094,1747043438080,-1171.602,0.000136,2]
[360824095,1747043438090,-163.579,0.000136,2]
[360824096,1747043438099,-55844.71684053,0.000136,2]
[360824097,1747043438111,-497.32002807,0.000136,2]
[360824098,1747043438136,-331.02993094,0.000136,2]
[360824103,1747043439819,-9.65249928,0.000136,2]
[360824104,1747043439832,-497.9702656,0.000136,2]
[360824105,1747043439844,-6511.32164705,0.000136,2]
[360824106,1747043439888,-17590.648061,0.000136,2]
[360824107,1747043439900,-998.11403224,0.000136,2]
[360824108,1747043439951,-614.704,0.000136,2]
[360824109,1747043439971,-436.74,0.000136,2]
[360824112,1747043440276,-31525.51589217,0.000136,2]
[360824113,1747043440290,-68290.76779372,0.000136,2]
[360824114,1747043440308,-9429.67100035,0.000136,2]
[360824135,1747043442893,-150915.91032696,0.000136,2]
[360824136,1747043442903,-671.5829539,0.00013629,2]
[360824137,1747043442912,-500.0,0.00013673,2]
[360824138,1747043442922,-504.35803671,0.00013673,2]
[360824139,1747043442931,-304.14358234,0.00013673,2]
[360824140,1747043442940,-500.0,0.00013673,2]
[360824141,1747043442950,-500.0,0.00013673,2]
[360824142,1747043442959,-502.13108564,0.00013673,2]
[360824143,1747043442968,-500.0,0.00013673,2]
[360824144,1747043442978,-930.0,0.00013683,2]
[360824145,1747043442987,-1304.0,0.00013683,2]
[360824146,1747043442997,-628.0,0.00013683,2]
[360824147,1747043443006,-798.0,0.00013683,2]
[360824148,1747043443016,-1249.0,0.00013683,2]
[360824149,1747043443026,-552.0,0.00013683,2]
[360824151,1747043443035,-1456.0,0.00013683,2]
[360824152,1747043443045,-918.0,0.00013683,2]
[360824153,1747043443054,-584.0,0.00013683,2]
[360824154,1747043443064,-4029.0,0.00013683,2]
[360824155,1747043443073,-6818.0,0.00013683,2]
[360824157,1747043443083,-154.0,0.00013683,2]
[360824158,1747043443093,-879.0,0.00013683,2]
[360824159,1747043443102,-836.0,0.00013683,2]
[360824160,1747043443112,-1075.0,0.00013683,2]
[360824161,1747043443121,-53521.37314205,0.00013684,2]
[360824163,1747043443139,-1050.3377325,0.00013684,2]
[360824164,1747043443151,-1567.17304762,0.00013684,2]
[360824165,1747043443172,-329.27022733,0.00013684,2]
[360824166,1747043443183,-414.68001201,0.00013684,2]
[360824167,1747043443195,-15752.43624717,0.00013684,2]
[360824168,1747043443206,-5127.3,0.00013684,2]
[360824169,1747043443221,-2441.93467861,0.00013684,2]
[360824177,1747043445501,-150.0,0.00013683,2]
[360824179,1747043445510,-4617.05951172,0.00013684,2]
[360824180,1747043445522,-614.91586001,0.00013684,2]
[360824181,1747043445553,-660.65379184,0.00013684,2]
[360824182,1747043445565,-2056.07506595,0.00013684,2]
[360824183,1747043445818,-13886.31433615,0.00013684,2]
[360824184,1747043445878,-599.38775637,0.00013684,2]
[360824185,1747043445932,-1027.9,0.00013684,2]
[360824186,1747043474291,10800.0,0.000137,5]
[360824187,1747043476444,13500.0,0.000138,5]
[360824188,1747043478549,2700.0,0.000139,5]
[360824189,1747043480651,2700.0,0.000145,5]
[360824190,1747043482769,2700.0,0.000146,5]
[360824191,1747043484915,2700.0,0.000147,5]
[360824192,1747043487065,2711.0,0.000148,5]
[360824194,1747043519912,45516.09447669,0.00015,7]
[360824197,1747043557302,-199.31543314,0.00012097,2]
[360824198,1747043557336,-41.56652326,0.00012196,2]
[360824199,1747043558953,150.0,0.000145,5]
[360824200,1747043572873,-152.87535948,0.00012196,2]
[360824201,1747043587527,-177.76509773,0.00012196,2]
[360824202,1747043589831,-76729.42387577,0.00015,7]
[360824203,1747043602342,-127.79301953,0.00012196,2]
[360824204,1747043602370,-129.73291315,0.00012196,2]
[360824205,1747043617301,-162.01,0.00012196,2]
[360824209,1747043632353,-189.26964301,0.00012196,2]
[360824210,1747043647288,-162.01,0.00012195,2]
[360824211,1747043654890,23270.57612423,0.00015,7]
[360824212,1747043662333,-137.99,0.00012195,2]
[360824213,1747043662358,-24.02,0.00012195,2]
[360824214,1747043662778,-100000.0,0.00015,7]
[360824215,1747043670648,-69516.86989347,0.00015,7]
[360824216,1747043677912,-125.98,0.00012195,2]
[360824217,1747043677941,-36.03,0.00012195,2]
[360824218,1747043692342,-162.01,0.00012195,2]
[360824219,1747043707350,-158.79148748,0.00012194,2]
[360824220,1747043711051,1385.31,0.00010288,2]
[360824221,1747043722588,-260.03670547,0.00012194,2]
[360824222,1747043737355,-266.55918457,0.00012194,2]
[360824223,1747043752310,-162.01,0.00012194,2]
[360824224,1747043926637,-189.26964301,0.00012093,2]
[360824225,1747043926659,-103.52470901,0.00012143,2]
[360824226,1747043932250,-146.47529099,0.00012143,2]
[360824227,1747043932277,-54.73272312,0.0001218,2]
[360824228,1747043947896,-163.04799938,0.00012179,2]
[360824229,1747044068278,-290.41484104,0.00012117,2]
[360824230,1747044082257,-73.84117196,0.00012117,2]
[360824231,1747044110289,189.26964301,0.00012078,2]
[360824232,1747044156509,150.0,0.00013699,7]
[360824233,1747044173824,-175.8605129,0.00012142,2]
[360824234,1747044187242,-156.3394871,0.00012142,2]
[360824235,1747044187267,-201.6893326,0.00012142,2]
[360824236,1747044202299,-277.27688288,0.00012142,2]
[360824237,1747044217940,-213.61637939,0.00012142,2]
[360824238,1747044232309,-242.27973233,0.00012142,2]
[360824239,1747044247235,-178.42674026,0.00012142,2]
[360824240,1747044262733,-224.27106723,0.00012115,2]
[360824241,1747044277774,-170.43486632,0.00012114,2]
[360824242,1747044293914,-300.66550872,0.00012114,2]
[360824243,1747044307249,-300.29533319,0.00012113,2]
[360824244,1747044322810,-279.62074182,0.00012113,2]
[360824245,1747044331261,349.095588,0.00012052,2]
[360824246,1747044337245,-196.39082836,0.00012113,2]
[360824247,1747044352504,-297.12464052,0.00012113,2]
[360824248,1747044367241,-126.56845611,0.00012113,2]
[360824249,1747044367263,-106.16581811,0.00012113,2]
[360824250,1747044382325,-193.83418189,0.00012113,2]
[360824251,1747044382346,-132.41707782,0.00012113,2]
[360824252,1747044383935,250.0,0.00012055,2]
[360824253,1747044392120,-17.58292218,0.00012113,2]
[360824254,1747044392150,-28.89962496,0.00012114,2]
[360824255,1747044392179,-500.0,0.00012114,2]
[360824256,1747044392205,-344.84580829,0.00012114,2]
[360824257,1747044398476,-155.15419171,0.00012114,2]
[360824258,1747044398505,-107.91448195,0.00012114,2]
[360824259,1747044406504,483.024582,0.00012053,2]
[360824260,1747044412340,-392.08551805,0.00012114,2]
[360824261,1747044412368,-2.91226469,0.00012114,2]
[360824262,1747044414068,36257.63,0.00012024,2]
[360824263,1747044427240,-218.00611909,0.00012113,2]
[360824264,1747044436179,3200.0,0.000137,5]
[360824265,1747044438283,4000.0,0.000138,5]
[360824266,1747044440393,800.0,0.000139,5]
[360824267,1747044442302,-81.99388091,0.00012113,2]
[360824268,1747044442330,-262.75872279,0.00012114,2]
[360824269,1747044442483,800.0,0.000145,5]
[360824270,1747044444618,800.0,0.000146,5]
[360824271,1747044446728,800.0,0.000147,5]
[360824272,1747044448851,1000.0,0.000148,5]
[360824273,1747044457339,-155.2473963,0.00012113,2]
[360824274,1747044472372,-268.40483236,0.00012113,2]
[360824275,1747044472399,-77.14622112,0.00012113,2]
[360824276,1747044487278,-78.10117518,0.00012113,2]
[360824277,1747044487306,-186.61849619,0.00012113,2]
[360824278,1747044502344,-158.93255729,0.00012113,2]
[360824279,1747044502367,-78.79626314,0.00012113,2]
[360824285,1747044517267,-195.8507542,0.00012113,2]
[360824286,1747044527003,1800.0,0.0002,120]
[360824287,1747044532934,-195.8507542,0.00012113,2]
[360824288,1747044532958,-25.35298266,0.00012113,2]
[360824289,1747044532985,-15.73879651,0.00012114,2]
[360824293,1747044547289,-236.94253337,0.00012113,2]
[360824294,1747044547311,-150.0,0.00012113,2]
[360824295,1747044547339,-10.84324746,0.00012114,2]
[360824296,1747044562371,-300.0,0.00012113,2]
[360824297,1747044563085,-97.78578083,0.00012113,2]
[360824298,1747044563112,-207.74696855,0.00012114,2]
[360824299,1747044563139,-500.0,0.00012114,2]
[360824300,1747044563165,-8.22419602,0.00012114,2]
[360824303,1747044577891,-182.89717704,0.00012114,2]
[360824306,1747044594134,-182.89717704,0.00012113,2]
[360824307,1747044594162,-134.20564592,0.00012114,2]
[360824308,1747044607310,-317.10282296,0.00012113,2]
[360824309,1747044607351,-63.74306598,0.00012114,2]
[360824310,1747044622458,-161.70917052,0.000121,2]
[360824322,1747044631815,-0.30082948,0.000121,2]
[360824323,1747044631825,-162.01,0.00012112,2]
[360824324,1747044631834,-1200.0,0.00012113,2]
[360824325,1747044631845,-300.0,0.00012113,2]
[360824326,1747044631855,-250.0,0.00012114,2]
[360824327,1747044631868,-2526.72893277,0.00012115,2]
[360824328,1747044631879,-162.01,0.00012125,2]
[360824329,1747044631889,-162.01,0.00012137,2]
[360824330,1747044631899,-23900.0,0.00012141,2]
[360824331,1747044631909,-99.93093254,0.00012142,2]
[360824332,1747044631919,-162.01,0.00012149,2]
[360824333,1747044631929,-162.01,0.00012161,2]
[360824334,1747044631939,-151.0,0.00012171,2]
[360824335,1747044631949,-151.0,0.00012171,2]
[360824336,1747044631958,-151.0,0.00012171,2]
[360824337,1747044631968,-151.0,0.00012171,2]
[360824339,1747044631977,-151.0,0.00012171,2]
[360824341,1747044631986,-151.0,0.00012171,2]
[360824343,1747044631996,-151.0,0.00012171,2]
[360824345,1747044632005,-151.0,0.00012171,2]
[360824347,1747044632015,-151.0,0.00012171,2]
[360824349,1747044632024,-151.0,0.00012171,2]
[360824351,1747044632034,-151.0,0.00012171,2]
[360824353,1747044632043,-151.0,0.00012171,2]
[360824355,1747044632053,-151.0,0.00012171,2]
[360824357,1747044632062,-151.0,0.00012171,2]
[360824358,1747044632071,-151.0,0.00012171,2]
[360824360,1747044632081,-151.0,0.00012171,2]
[360824361,1747044632091,-151.0,0.00012171,2]
[360824363,1747044632100,-151.0,0.00012171,2]
[360824365,1747044632111,-151.0,0.00012171,2]
[360824367,1747044632121,-151.0,0.00012171,2]
[360824369,1747044632130,-592.81,0.00012183,2]
[360824371,1747044632140,-3017.59,0.00012188,2]
[360824373,1747044632150,-1000.0,0.00012191,2]
[360824376,1747044632159,-214.79742877,0.00012196,2]
[360824378,1747044632169,-6018.64,0.00012199,2]
[360824380,1747044632178,-200.0,0.0001221,2]
[360824382,1747044632187,-150.0,0.00012231,2]
[360824384,1747044632196,-170.06,0.00012247,2]
[360824386,1747044632206,-1385.31,0.00012552,2]
[360824388,1747044632215,-465.07,0.00012648,2]
[360824390,1747044632224,-465.07,0.00012651,2]
[360824392,1747044632234,-465.07,0.00012655,2]
[360824394,1747044632243,-465.07,0.00012658,2]
[360824396,1747044632253,-465.07,0.00012661,2]
[360824398,1747044632262,-465.07,0.00012664,2]
[360824400,1747044632272,-465.07,0.00012668,2]
[360824402,1747044632281,-465.07,0.00012671,2]
[360824404,1747044632291,-465.07,0.00012674,2]
[360824406,1747044632300,-338.116346,0.00012678,2]
[360824408,1747044632319,-126.953654,0.00012678,2]
[360824411,1747044632329,-465.07,0.00012681,2]
[360824413,1747044632338,-465.07,0.00012684,2]
[360824415,1747044632349,-465.07,0.00012688,2]
[360824417,1747044632360,-465.07,0.00012691,2]
[360824419,1747044632370,-465.07,0.00012694,2]
[360824421,1747044632380,-465.07,0.00012698,2]
[360824423,1747044632390,-465.07,0.00012701,2]
[360824425,1747044632400,-465.07,0.00012704,2]
[360824427,1747044632409,-465.07,0.00012708,2]
[360824429,1747044632419,-465.07,0.00012711,2]
[360824431,1747044632428,-265.28931518,0.00013003,2]
[360824433,1747044632438,-207.4,0.00013003,2]
[360824435,1747044632447,-255.0,0.00013191,2]
[360824437,1747044632457,-352.72,0.00013221,2]
[360824439,1747044632466,-352.72,0.00013221,2]
[360824441,1747044632475,-352.72,0.00013221,2]
[360824443,1747044632485,-162.53,0.00013221,2]
[360824445,1747044632494,-352.72,0.00013221,2]
[360824447,1747044632503,-452.44,0.00013221,2]
[360824449,1747044632512,-457.95,0.00013221,2]
[360824451,1747044632521,-420.0,0.00013295,2]
[360824452,1747044632531,-720.87549843,0.00013299,2]
[360824453,1747044632540,-1680.0,0.00013324,2]
[360824454,1747044632549,-250.0,0.00013324,2]